bitfinex-derivatives/quotes_SOLF0:USTF0_20250720
["timestamp","ask_amount","ask_price","bid_price","bid_amount"]
[1752996320627,3.15,178.24,178.23,3.2]
[1752996323722,3.15,178.24,178.23,8.8077]
[1752996324927,1.19730172,178.25,178.23,8.8077]
[1752996325229,4.34730172,178.25,178.24,3.2]
[1752996326131,3.15,178.25,178.24,3.2]
[1752996326431,4.34730172,178.25,178.24,3.2]
[1752996327231,4.34730172,178.25,178.24,8.8074]
[1752996327433,1.19730172,178.27,178.25,3.2]
[1752996328132,1.19730172,178.27,178.25,8.807]
[1752996328334,1.19730172,178.27,178.26,3.12]
[1752996329732,4.46730172,178.27,178.26,3.12]
[1752996331130,3.27,178.26,178.25,3.12]
[1752996331328,3.27,178.25,178.23,3.12]
[1752996331533,3.27,178.23,178.21,102.3]
[1752996331726,1.19730172,178.22,178.19,5.6089]
[1752996331929,1.19730172,178.22,178.21,3.12]
[1752996332426,4.46730172,178.22,178.21,3.12]
[1752996336242,3.27,178.21,178.19,102.3]
[1752996336437,12.59630065,178.33,178.19,102.3]
[1752996336438,1.19730172,178.2,178.19,102.3]
[1752996336635,4.46730172,178.2,178.19,105.42]
[1752996337729,4.46730172,178.2,178.19,3.12]
[1752996338134,10.07600172,178.2,178.19,3.12]
[1752996338339,6.80600172,178.2,178.18,130.50156312]
[1752996338539,3.27,178.19,178.18,133.62156312]
[1752996338736,8.879,178.19,178.18,3.12]
[1752996338941,3.27,178.18,178.17,105.42]
[1752996339442,4.46730172,178.18,178.17,105.42]
[1752996341045,1.19730172,178.18,178.17,105.42]
[1752996341543,4.46730172,178.19,178.18,3.12]
[1752996343144,1.19730172,178.19,178.18,3.12]
[1752996343845,1.19730172,178.19,178.18,8.7293]
[1752996345648,1.19730172,178.19,178.18,3.12]
[1752996346341,4.46730172,178.19,178.18,3.12]
[1752996350752,1.19730172,178.19,178.18,3.12]
[1752996353456,4.46730172,178.19,178.18,3.12]
[1752996362365,1.19730172,178.19,178.18,3.12]
[1752996363869,1.19730172,178.2,178.18,3.12]
[1752996364169,1.19730172,178.2,178.19,105.6]
[1752996364866,4.33730172,178.22,178.19,107.909]
[1752996365072,4.33730172,178.22,178.2,3.3]
[1752996365865,4.33730172,178.22,178.2,8.9087]
[1752996365866,1.19730172,178.22,178.2,8.9087]
[1752996366172,1.19730172,178.24,178.21,3.3]
[1752996366565,1.19730172,178.24,178.21,8.9083]
[1752996366763,1.19730172,178.24,178.21,5.6083]
[1752996366966,1.19730172,178.24,178.22,3.3]
[1752996367164,4.33730172,178.24,178.22,3.3]
[1752996367368,3.14,178.24,178.22,3.3]
[1752996367569,3.14,178.25,178.22,3.3]
[1752996367872,1.19730172,178.24,178.22,3.3]
[1752996368467,1.19730172,178.24,178.22,8.908]
[1752996368668,1.19730172,178.24,178.22,3.3]
[1752996371367,4.33730172,178.24,178.22,3.3]
[1752996372672,1.19730172,178.24,178.22,3.3]
[1752996372867,3.14,178.23,178.22,3.3]
[1752996373675,3.14,178.23,178.2,3.3]
[1752996373970,4.33730172,178.21,178.2,3.3]
[1752996374870,9.94570172,178.21,178.2,3.3]
[1752996375065,1.19730172,178.21,178.18,3.3]
[1752996375270,3.14,178.2,178.18,3.3]
[1752996375473,1.19730172,178.19,178.18,3.3]
[1752996375673,4.33730172,178.19,178.18,3.3]
[1752996378574,1.19730172,178.19,178.18,3.3]
[1752996379470,1.19730172,178.2,178.18,3.3]
[1752996380775,1.19730172,178.21,178.19,3.3]
[1752996381078,9.94550172,178.22,178.19,3.3]
[1752996382175,1.19730172,178.22,178.2,3.3]
[1752996382478,3.14,178.21,178.18,3.3]
[1752996382679,4.33730172,178.2,178.18,3.3]
[1752996382876,3.14,178.19,178.18,3.3]
[1752996383585,5.6089,178.2,178.18,3.3]
[1752996383883,6.80620172,178.2,178.18,3.3]
[1752996384082,9.94620172,178.2,178.18,3.3]
[1752996386185,6.80620172,178.2,178.18,3.3]
[1752996386387,3.14,178.19,178.18,3.3]
[1752996386985,9.94620172,178.2,178.18,3.3]
[1752996387884,4.33730172,178.2,178.18,3.3]
[1752996390287,3.14,178.2,178.18,3.3]
[1752996390484,1.19730172,178.2,178.18,3.3]
[1752996391794,1.19730172,178.2,178.19,5.609]
[1752996391984,1.19730172,178.2,178.19,8.689]
[1752996392385,1.19730172,178.2,178.19,3.08]
[1752996394689,1.19730172,178.2,178.19,8.689]
[1752996395189,1.19730172,178.2,178.19,3.08]
[1752996400592,4.46730172,178.2,178.19,3.08]
[1752996404291,1.19730172,178.2,178.19,3.08]
[1752996405097,10.07570172,178.21,178.19,3.08]
[1752996405292,6.80570172,178.21,178.19,3.08]
[1752996405997,6.80570172,178.21,178.19,8.689]
[1752996406194,1.19730172,178.21,178.2,3.08]
[1752996406399,6.80550172,178.22,178.2,3.08]
[1752996406898,10.07550172,178.22,178.2,3.08]
[1752996408301,8.8782,178.22,178.2,3.08]
[1752996408498,10.07550172,178.22,178.2,3.08]
[1752996410397,8.8782,178.22,178.2,3.08]
[1752996410995,5.6082,178.22,178.2,3.08]
[1752996411202,6.80510172,178.23,178.2,3.08]
[1752996411897,8.8774,178.25,178.2,3.08]
[1752996412104,10.07470172,178.25,178.23,3.08]
[1752996413907,3.27,178.24,178.23,3.08]
[1752996414207,10.07470172,178.25,178.23,3.08]
[1752996415302,3.27,178.24,178.23,3.08]
[1752996416911,3.27,178.25,178.23,3.08]
[1752996417815,3.27,178.25,178.23,8.6877]
[1752996418115,6.80420172,178.26,178.24,3.08]
[1752996418319,4.29730172,178.26,178.24,3.08]
[1752996419217,4.29730172,178.26,178.24,5.6074]
[1752996419421,4.29730172,178.26,178.25,3.08]
[1752996419715,9.90410172,178.26,178.25,3.08]
[1752996419909,8.7068,178.26,178.25,3.08]
[1752996420111,9.90410172,178.26,178.25,3.08]
[1752996420817,8.7068,178.26,178.25,3.08]
[1752996421021,9.90410172,178.26,178.25,3.08]
[1752996421815,8.7068,178.26,178.25,3.08]
[1752996422116,4.29730172,178.26,178.25,3.08]
[1752996422517,1.19730172,178.26,178.25,3.08]
[1752996422710,1.19730172,178.27,178.25,3.08]
[1752996423019,4.29730172,178.27,178.25,3.08]
[1752996424523,4.29730172,178.3,178.26,4.27730172]
[1752996424818,3.1,178.29,178.27,3.08]
[1752996425009,3.1,178.29,178.27,5.6065]
[1752996425214,3.1,178.29,178.28,3.08]
[1752996426018,3.1,178.3,178.28,3.08]
[1752996426614,1.19730172,178.31,178.28,3.08]
[1752996426816,3.1,178.31,178.28,3.08]
[1752996427321,4.29730172,178.3,178.28,3.08]
[1752996427821,3.1,178.29,178.28,3.08]
[1752996428322,3.1,178.3,178.28,3.08]
[1752996429013,3.1,178.29,178.28,3.08]
[1752996429614,3.1,178.3,178.28,3.08]
[1752996437727,3.1,178.29,178.28,3.08]
[1752996438529,3.1,178.28,178.26,3.08]
[1752996438730,4.29730172,178.28,178.27,3.08]
[1752996439229,3.1,178.27,178.25,3.08]
[1752996439427,4.29730172,178.27,178.25,3.08]
[1752996439633,3.1,178.26,178.23,108.98480172]
[1752996440228,3.1,178.26,178.24,3.08]
[1752996443032,4.29730172,178.27,178.25,3.08]
[1752996443531,3.1,178.27,178.25,3.08]
[1752996446127,3.1,178.27,178.24,1.19730172]
[1752996446328,3.1,178.27,178.26,3.08]
[1752996447032,4.29730172,178.27,178.26,3.08]
[1752996456541,3.1,178.27,178.26,3.08]
[1752996456840,4.29730172,178.27,178.26,3.08]
[1752996457641,1.19730172,178.28,178.26,3.08]
[1752996457940,4.17730172,178.28,178.26,3.08]
[1752996458539,2.98,178.27,178.26,3.08]
[1752996458944,2.98,178.27,178.25,3.27539985]
[1752996459130,4.17730172,178.26,178.25,3.27539985]
[1752996461044,2.98,178.26,178.25,3.27539985]
[1752996461344,1.19730172,178.27,178.25,3.27539985]
[1752996461545,4.17730172,178.27,178.25,3.27539985]
[1752996461741,2.98,178.26,178.25,3.27539985]
[1752996469656,8.5868,178.26,178.25,0.03539985]
[1752996471155,2.98,178.26,178.25,0.03539985]
[1752996471550,8.5868,178.26,178.25,0.03539985]
[1752996472151,2.98,178.26,178.25,3.27539985]
[1752996472359,4.17730172,178.26,178.25,3.27539985]
[1752996473747,1.19730172,178.27,178.25,3.27539985]
[1752996474054,1.19730172,178.28,178.25,3.27539985]
[1752996474957,1.19730172,178.28,178.27,8.8463]
[1752996476255,4.17730172,178.28,178.27,8.8463]
[1752996476961,1.19730172,178.28,178.27,8.8463]
[1752996479258,2.98,178.29,178.28,5.6062]
[1752996479454,4.17730172,178.29,178.28,5.6062]
[1752996479656,4.20730172,178.3,178.28,3.28]
[1752996479862,1.19730172,178.3,178.29,5.6059]
[1752996480059,3.01,178.32,178.29,3.28]
[1752996480357,1.19730172,178.31,178.3,5.6055]
[1752996480562,1.19730172,178.32,178.3,3.28]
[1752996481164,1.19730172,178.32,178.31,5.6052]
[1752996481363,1.19730172,178.32,178.31,8.8852]
[1752996481563,4.20730172,178.32,178.31,8.8852]
[1752996485069,3.01,178.32,178.31,8.8852]
[1752996485264,4.20730172,178.32,178.31,8.8852]
[1752996486764,3.01,178.32,178.31,8.8852]
[1752996486970,4.20730172,178.32,178.31,8.8852]
[1752996491072,3.01,178.32,178.31,8.8852]
[1752996491273,3.01,178.34,178.33,5.6046]
[1752996491464,4.20730172,178.34,178.33,8.8846]
[1752996494675,3.01,178.34,178.33,8.8846]
[1752996494872,4.20730172,178.34,178.33,8.8846]
[1752996495776,3.01,178.34,178.33,8.8846]
[1752996495971,4.20730172,178.34,178.33,8.8846]
[1752996499380,3.01,178.34,178.33,8.8846]
[1752996499582,4.20730172,178.34,178.33,8.8846]
[1752996501978,6.29815032,178.39,178.33,3.28]
[1752996502178,1.19730172,178.34,178.33,3.28]
[1752996502383,3.01,178.36,178.33,3.28]
[1752996502682,4.20730172,178.34,178.33,8.8846]
[1752996503184,3.01,178.34,178.33,8.8846]
[1752996503883,3.01,178.38,178.36,3.28]
[1752996504083,4.20730172,178.37,178.36,3.28]
[1752996506282,3.01,178.36,178.35,3.28]
[1752996506785,4.20730172,178.36,178.35,3.28]
[1752996508284,4.20730172,178.36,178.35,8.884]
[1752996508686,3.01,178.36,178.35,8.884]
[1752996508885,4.20730172,178.36,178.35,8.884]
[1752996510684,4.20730172,178.36,178.35,3.28]
[1752996511787,4.17730172,178.36,178.35,3.28]
[1752996512589,4.17730172,178.36,178.35,8.884]
[1752996512789,102.2,178.41,178.35,3.28]
[1752996512790,1.19730172,178.37,178.35,3.28]
[1752996513087,1.19730172,178.37,178.36,8.6537]
[1752996514188,2.98,178.38,178.36,5.6037]
[1752996514385,2.98,178.38,178.37,3.05]
[1752996515081,2.98,178.38,178.35,8.6539]
[1752996515689,4.17730172,178.36,178.35,3.05]
[1752996517588,2.98,178.36,178.35,8.654]
[1752996517895,4.17730172,178.36,178.35,8.654]
[1752996518194,1.19730172,178.36,178.35,8.654]
[1752996520495,2.98,178.38,178.36,5.6036]
[1752996520797,1.19730172,178.37,178.36,8.6536]
[1752996520996,4.17730172,178.37,178.36,8.6536]
[1752996521198,4.17730172,178.37,178.36,3.05]
[1752996522593,2.98,178.37,178.36,3.05]
[1752996522900,4.17730172,178.37,178.36,3.05]
[1752996523902,2.98,178.39,178.36,3.05]
[1752996524201,1.19730172,178.37,178.36,3.05]
[1752996524602,2.98,178.38,178.37,5.6033]
[1752996524801,4.17730172,178.38,178.37,5.6033]
[1752996525001,1.19730172,178.38,178.37,5.6033]
[1752996525201,1.19730172,178.38,178.37,8.6533]
[1752996527306,2.98,178.38,178.37,8.6533]
[1752996527502,2.98,178.38,178.37,3.05]
[1752996528005,4.17730172,178.38,178.37,3.05]
[1752996528806,2.98,178.39,178.37,8.6533]
[1752996529005,1.19730172,178.38,178.37,8.6533]
[1752996529710,114.09995032,178.42,178.38,5.603]
[1752996529910,1.19730172,178.39,178.38,5.603]
[1752996530203,8.5821,178.41,178.37,5.6033]
[1752996530404,1.19730172,178.38,178.37,8.6533]
[1752996531411,1.19730172,178.38,178.37,3.05]
[1752996532209,4.17730172,178.38,178.37,3.05]
[1752996532607,1.19730172,178.38,178.37,8.6533]
[1752996533011,1.19730172,178.38,178.37,3.05]
[1752996533704,2.98,178.37,178.36,3.05]
[1752996534301,8.5836,178.37,178.36,3.05]
[1752996534511,9.78090172,178.37,178.36,3.05]
[1752996535112,2.98,178.35,178.34,3.05]
[1752996535312,4.17730172,178.35,178.34,3.05]
[1752996535912,2.98,178.35,178.34,3.05]
[1752996536106,4.17730172,178.35,178.34,3.05]
[1752996536605,6.29815032,178.38,178.34,8.6541]
[1752996536810,1.19730172,178.35,178.34,5.6041]
[1752996537012,1.19730172,178.35,178.33,126.88582208]
[1752996537311,1.19730172,178.35,178.34,3.05]
[1752996537713,2.98,178.34,178.28,1.19730172]
[1752996537913,1.19730172,178.32,178.29,3.05]
[1752996538314,1.19730172,178.33,178.32,3.3]
[1752996539114,2.98,178.34,178.32,8.9049]
[1752996539314,2.98,178.34,178.32,5.6049]
[1752996539509,1.19730172,178.33,178.32,5.6049]
[1752996539910,1.19730172,178.33,178.32,8.9049]
[1752996540214,2.98,178.34,178.32,3.3]
[1752996540413,1.19730172,178.33,178.32,3.3]
[1752996540805,1.19730172,178.33,178.32,8.9049]
[1752996541314,2.98,178.34,178.32,8.9049]
[1752996541514,1.19730172,178.33,178.32,5.6049]
[1752996542015,1.19730172,178.33,178.32,8.9049]
[1752996543415,2.98,178.34,178.26,102.62]
[1752996543416,5.6034,178.37,178.33,5.6046]
[1752996543617,1.19730172,178.34,178.33,8.9046]
[1752996544213,1.19730172,178.35,178.34,8.9041]
[1752996546016,3.01,178.36,178.35,3.3]
[1752996546217,4.20730172,178.36,178.35,3.3]
[1752996547814,3.01,178.35,178.33,3.3]
[1752996548020,4.20730172,178.34,178.33,3.3]
[1752996550222,3.01,178.34,178.33,3.3]
[1752996550430,4.20730172,178.34,178.33,3.3]
[1752996552819,1.19730172,178.34,178.33,3.3]
[1752996557628,3.01,178.35,178.33,3.3]
[1752996557829,1.19730172,178.34,178.33,3.3]
[1752996559534,3.01,178.36,178.33,3.3]
[1752996559833,1.19730172,178.34,178.33,3.3]
[1752996560127,3.01,178.35,178.33,3.3]
[1752996560427,1.19730172,178.34,178.33,3.3]
[1752996561327,3.01,178.36,178.33,3.3]
[1752996561534,1.19730172,178.34,178.33,3.3]
[1752996562635,3.01,178.36,178.33,3.3]
[1752996562934,1.19730172,178.34,178.33,3.3]
[1752996563124,3.01,178.36,178.33,3.3]
[1752996563326,1.19730172,178.35,178.33,3.3]
[1752996563732,1.19730172,178.35,178.34,5.6042]
[1752996563932,1.19730172,178.35,178.34,8.9042]
[1752996564126,4.20730172,178.37,178.35,3.3]
[1752996565636,1.19730172,178.36,178.35,3.3]
[1752996566134,6.29815032,178.41,178.36,3.3]
[1752996566437,3.01,178.47,178.41,3.3]
[1752996566634,3.01,178.47,178.43,1.19730172]
[1752996566839,3.01,178.47,178.44,3.3]
[1752996567038,3.01,178.46,178.44,5.6009]
[1752996567236,3.01,178.54,178.45,4.49730172]
[1752996567437,3.01,178.54,178.46,3.3]
[1752996567629,3.01,178.53,178.49,3.3]
[1752996567936,3.01,178.51,178.49,3.3]
[1752996568137,3.29,178.5,178.49,3.3]
[1752996570841,3.29,178.52,178.49,3.01]
[1752996571042,3.29,178.51,178.49,3.01]
[1752996571231,3.29,178.5,178.48,5.5999]
[1752996571738,3.29,178.5,178.47,8.6099]
[1752996571939,3.29,178.5,178.48,3.01]
[1752996572436,3.29,178.49,178.48,3.01]
[1752996573743,3.29,178.5,178.48,3.01]
[1752996573939,3.29,178.5,178.49,3.01]
[1752996577237,3.29,178.5,178.49,5.5996]
[1752996577443,1.86429244,178.56,178.48,3.01]
[1752996577741,8.8878,178.55,178.48,3.01]
[1752996578043,3.29,178.54,178.51,3.01]
[1752996578442,3.29,178.54,178.53,3.01]
[1752996579546,3.29,178.56,178.54,5.5978]
[1752996579743,3.29,178.56,178.55,3.01]
[1752996582544,3.29,178.58,178.55,3.01]
[1752996583646,3.29,178.58,178.57,3.01]
[1752996586844,3.29,178.59,178.52,3.01]
[1752996587347,5.597,178.58,178.52,8.6084]
[1752996587552,3.29,178.57,178.53,3.01]
[1752996587855,3.29,178.56,178.53,3.01]
[1752996588256,3.29,178.56,178.54,3.01]
[1752996593458,3.29,178.55,178.53,3.01]
[1752996593655,3.29,178.54,178.48,103.92]
[1752996594052,3.29,178.54,178.53,5.5984]
[1752996594253,3.29,178.54,178.53,8.6084]
[1752996594555,3.29,178.54,178.53,5.5984]
[1752996594751,5.15429244,178.54,178.46,1.86429244]
[1752996594956,5.15429244,178.54,178.47,3.01]
[1752996595282,3.29,178.53,178.5,3.01]
[1752996595457,3.29,178.52,178.5,3.01]
[1752996596058,11.1914,178.62,178.5,3.01]
[1752996596258,3.29,178.56,178.5,3.01]
[1752996596561,5.5976,178.56,178.52,5.5985]
[1752996596755,3.29,178.54,178.53,3.01]
[1752996599764,3.29,178.54,178.53,8.6084]
[1752996600860,3.29,178.54,178.52,3.13]
[1752996601164,3.29,178.54,178.53,3.13]
[1752996601562,3.29,178.54,178.52,3.13]
[1752996604058,3.29,178.54,178.48,3.13]
[1752996604461,3.29,178.54,178.49,1.86429244]
[1752996604659,3.29,178.54,178.5,3.13]
[1752996604963,1.86429244,178.56,178.53,3.13]
[1752996605163,3.29,178.55,178.53,3.13]
[1752996605967,3.29,178.54,178.53,3.13]
[1752996606162,3.29,178.54,178.51,5.5989]
[1752996606461,3.29,178.54,178.52,3.13]
[1752996607468,5.5978,178.55,178.53,3.13]
[1752996607666,7.46179244,178.56,178.53,3.13]
[1752996608058,3.29,178.55,178.53,3.13]
[1752996608358,3.29,178.55,178.54,3.13]
[1752996608561,5.5977,178.55,178.51,5.5988]
[1752996608766,3.29,178.54,178.52,3.13]
[1752996610164,3.29,178.53,178.5,3.13]
[1752996610469,3.29,178.51,178.47,3.13]
[1752996610670,3.29,178.48,178.45,107.03]
[1752996610870,3.29,178.48,178.46,3.13]
[1752996611070,3.29,178.47,178.45,103.9]
[1752996611267,3.29,178.5,178.45,103.9]
[1752996611474,3.29,178.49,178.46,3.13]
[1752996611771,3.29,178.52,178.46,3.13]
[1752996612174,8.8889,178.52,178.48,5.5997]
[1752996612377,3.29,178.51,178.48,8.7297]
[1752996612871,3.29,178.51,178.49,3.13]
[1752996613166,3.29,178.53,178.46,4.99429244]
[1752996613373,1.86429244,178.56,178.49,3.13]
[1752996613569,3.29,178.55,178.52,5.5985]
[1752996613769,3.29,178.55,178.49,3.13]
[1752996614166,3.29,178.55,178.5,1.86429244]
[1752996614372,3.29,178.57,178.51,3.13]
[1752996614773,5.5972,178.57,178.54,5.598]
[1752996614973,3.29,178.56,178.55,3.13]
[1752996615275,8.8864,178.6,178.56,5.5972]
[1752996615468,3.29,178.59,178.57,3.13]
[1752996615981,3.29,178.58,178.57,3.13]
[1752996616278,3.29,178.58,178.57,8.7271]
[1752996616477,3.29,178.58,178.57,3.13]
[1752996617480,3.29,178.58,178.57,8.7271]
[1752996617870,5.5962,178.6,178.58,3.13]
[1752996618071,3.29,178.62,178.58,3.13]
[1752996618275,1.86429244,178.65,178.58,3.13]
[1752996618470,3.29,178.61,178.58,3.13]
[1752996618673,3.29,178.61,178.6,5.5962]
[1752996618874,6.23595047,178.67,178.6,3.13]
[1752996619074,3.29,178.63,178.6,3.13]
[1752996619283,3.29,178.63,178.61,5.5956]
[1752996619476,3.29,178.63,178.62,3.13]
[1752996619674,3.29,178.63,178.61,3.13]
[1752996619870,1.86429244,178.65,178.57,1.86429244]
[1752996620079,3.29,178.64,178.58,3.13]
[1752996620481,3.29,178.62,178.59,8.7263]
[1752996620881,3.29,178.62,178.59,3.13]
[1752996621082,3.29,178.6,178.56,3.13]
[1752996621582,3.29,178.59,178.56,3.13]
[1752996621782,3.29,178.59,178.57,3.13]
[1752996622179,5.5965,178.59,178.57,3.13]
[1752996622384,3.29,178.58,178.56,3.13]
[1752996622684,3.29,178.58,178.55,3.13]
[1752996623982,3.29,178.57,178.53,5.5983]
[1752996624284,3.29,178.58,178.53,3.13]
[1752996625685,3.29,178.58,178.56,3.13]
[1752996626385,3.29,178.57,178.56,3.13]
[1752996626885,3.29,178.55,178.52,104.14]
[1752996627075,3.29,178.55,178.52,107.27]
[1752996627279,5.15429244,178.55,178.53,3.13]
[1752996627478,3.29,178.54,178.53,3.13]
[1752996628581,3.29,178.54,178.52,104.14]
[1752996628782,3.29,178.54,178.52,107.33]
[1752996628986,7.46209244,178.55,178.52,3.19]
[1752996629191,3.12,178.53,178.52,3.19]
[1752996631595,3.12,178.53,178.51,3.19]
[1752996632095,3.12,178.52,178.51,8.789]
[1752996634394,3.12,178.52,178.51,3.19]
[1752996635488,3.12,178.52,178.43,4.62362414]
[1752996635689,3.12,178.52,178.49,3.19]
[1752996636091,5.5989,178.52,178.49,3.19]
[1752996636293,3.12,178.5,178.49,3.19]
[1752996636483,3.12,178.5,178.47,3.19]
[1752996636695,3.12,178.5,178.44,105.72429244]
[1752996636892,3.12,178.5,178.48,3.19]
[1752996637191,1.86429244,178.51,178.48,3.19]
[1752996637385,3.12,178.49,178.48,3.19]
[1752996641291,4.98429244,178.51,178.48,8.7899]
[1752996641491,3.12,178.5,178.49,3.19]
[1752996642494,3.12,178.5,178.48,3.19]
[1752996643092,3.12,178.49,178.47,5.6001]
[1752996643700,3.12,178.49,178.48,3.19]
[1752996647400,3.12,178.51,178.48,3.19]
[1752996647796,3.12,178.51,178.49,5.5994]
[1752996647997,3.12,178.51,178.5,3.19]
[1752996648400,3.12,178.53,178.52,3.19]
[1752996650399,3.12,178.53,178.5,5.5992]
[1752996650600,3.12,178.53,178.51,3.19]
[1752996651001,7.46209244,178.55,178.5,5.5992]
[1752996651203,3.12,178.54,178.5,5.5992]
[1752996651399,3.12,178.54,178.52,3.19]
[1752996654908,3.12,178.53,178.52,5.5987]
[1752996655407,3.12,178.55,178.5,3.19]
[1752996655706,3.12,178.55,178.54,3.19]
[1752996655908,3.12,178.56,178.54,3.19]
[1752996658014,3.12,178.56,178.54,8.7879]
[1752996658815,3.12,178.56,178.54,3.19]
[1752996659417,3.12,178.56,178.55,3.05]
[1752996660613,7.46089244,178.59,178.55,3.05]
[1752996660818,3.01,178.57,178.55,3.05]
[1752996661815,3.01,178.57,178.56,5.5974]
[1752996662011,3.01,178.59,178.56,3.05]
[1752996662414,3.01,178.59,178.57,5.5968]
[1752996662713,3.01,178.59,178.58,3.05]
[1752996664111,8.6065,178.59,178.58,3.05]
[1752996665619,3.01,178.59,178.58,3.05]
[1752996666119,3.01,178.59,178.57,3.05]
[1752996666914,3.01,178.58,178.56,5.5973]
[1752996667314,3.01,178.58,178.57,5.5971]
[1752996667514,3.01,178.59,178.58,3.05]
[1752996667919,3.01,178.61,178.58,8.6468]
[1752996668222,3.01,178.61,178.59,3.05]
[1752996668614,3.01,178.61,178.6,3.05]
[1752996669015,3.01,178.62,178.6,3.05]
[1752996669620,3.01,178.61,178.6,3.05]
[1752996671320,3.01,178.61,178.58,3.05]
[1752996676824,3.01,178.6,178.56,3.05]
[1752996677420,3.01,178.6,178.56,1.86429244]
[1752996677626,3.01,178.61,178.57,3.05]
[1752996678029,3.01,178.61,178.59,3.05]
[1752996678434,3.01,178.6,178.58,5.5965]
[1752996679033,3.01,178.63,178.6,3.05]
[1752996679232,3.01,178.63,178.61,3.05]
[1752996680628,3.01,178.63,178.62,3.05]
[1752996682434,3.01,178.63,178.59,5.5963]
[1752996682638,3.01,178.63,178.6,3.05]
[1752996683531,3.01,178.63,178.59,3.05]
[1752996683735,3.01,178.61,178.56,3.05]
[1752996683931,3.01,178.61,178.55,1.86429244]
[1752996683932,3.01,178.61,178.57,5.5968]
[1752996684240,3.01,178.61,178.58,3.05]
[1752996684439,3.01,178.61,178.56,3.05]
[1752996684736,3.01,178.61,178.59,3.05]
[1752996686037,3.01,178.64,178.61,3.05]
[1752996686240,3.01,178.64,178.57,1.86429244]
[1752996686434,3.01,178.62,178.56,3.05]
[1752996686841,3.01,178.62,178.59,5.5964]
[1752996687040,3.01,178.62,178.6,3.05]
[1752996687443,3.01,178.62,178.57,1.86429244]
[1752996687642,3.01,178.62,178.58,3.05]
[1752996688138,3.01,178.62,178.61,3.24]
[1752996693448,3.01,178.62,178.61,8.8359]
[1752996694747,3.01,178.62,178.61,3.24]
[1752996697449,3.01,178.62,178.55,1.86429244]
[1752996697650,3.01,178.62,178.56,3.24]
[1752996697950,3.01,178.62,178.58,3.24]
[1752996698546,3.01,178.62,178.59,3.24]
[1752996700657,3.01,178.62,178.54,1.86429244]
[1752996700957,3.01,178.62,178.6,3.24]
[1752996704359,5.09429244,178.64,178.6,3.24]
[1752996704559,3.23,178.63,178.6,3.24]
[1752996705262,3.23,178.67,178.6,5.10429244]
[1752996705459,3.23,178.67,178.61,3.24]
[1752996706359,1.86429244,178.67,178.61,3.24]
[1752996706560,3.23,178.66,178.62,3.24]
[1752996707162,3.23,178.65,178.64,3.24]
[1752996712058,1.86429244,178.69,178.64,3.24]